bitfinex/quotes_BTCUSD_20260310
["timestamp","ask_amount","ask_price","bid_price","bid_amount"]
[1773168202392,0.03,70116.0,70100.0,1e-08]
[1773168202600,0.03,70116.0,70100.0,0.00152001]
[1773168202798,0.03152,70116.0,70100.0,1e-08]
[1773168202993,0.03152,70116.0,70101.0,0.00152]
[1773168203205,0.07131141,70115.0,70101.0,0.07284519]
[1773168203409,0.03,70114.0,70100.0,1e-08]
[1773168203635,0.03,70114.0,70094.0,0.00969197]
[1773168203636,0.03,70114.0,70101.0,0.00152]
[1773168203833,0.03,70114.0,70096.0,0.07520003]
[1773168204017,0.03,70114.0,70098.0,0.00969197]
[1773168204541,0.03,70114.0,70100.0,0.00969197]
[1773168205339,0.07131132,70116.0,70102.0,0.00969197]
[1773168205771,0.07141692,70123.0,70102.0,0.00969197]
[1773168206270,0.03,70122.0,70103.0,0.00152]
[1773168206472,0.03,70122.0,70102.0,0.00969197]
[1773168206632,0.03,70122.0,70103.0,0.00152]
[1773168207600,0.03,70120.0,70104.0,0.00152]
[1773168207805,0.03,70120.0,70104.0,0.00969197]
[1773168208180,0.03,70120.0,70105.0,0.00152]
[1773168208377,0.03,70120.0,70104.0,0.00969197]
[1773168208563,0.03,70120.0,70105.0,0.00152]
[1773168208763,0.03,70120.0,70105.0,0.00137198]
[1773168209386,0.03,70120.0,70096.0,0.07520038]
[1773168209387,0.03,70118.0,70096.0,0.07520038]
[1773168209583,0.00596285,70117.0,70097.0,0.07152954]
[1773168210182,0.03152,70118.0,70097.0,0.07152954]
[1773168210383,0.03152,70118.0,70099.0,0.00969197]
[1773168210901,0.03,70118.0,70101.0,0.00969197]
[1773168211101,0.03,70118.0,70102.0,0.00152]
[1773168211282,0.03,70119.0,70103.0,0.00969197]
[1773168211486,0.03,70117.0,70105.0,0.00969197]
[1773168211662,0.03,70117.0,70107.0,0.00969197]
[1773168212090,0.03,70117.0,70108.0,0.00152]
[1773168212495,0.03,70116.0,70108.0,0.00152]
[1773168212762,0.03,70116.0,70102.0,0.0713226]
[1773168212763,0.03,70114.0,70090.0,0.0002]
[1773168212936,0.07130836,70119.0,70097.0,0.0715294]
[1773168212937,0.03,70112.0,70097.0,0.0715294]
[1773168213137,0.00152,70118.0,70098.0,0.00152]
[1773168213138,0.03,70110.0,70098.0,0.00152]
[1773168213315,0.03,70108.0,70099.0,0.00152]
[1773168213515,0.07131751,70109.0,70089.0,1e-08]
[1773168213516,0.03,70104.0,70089.0,1e-08]
[1773168213716,0.1806481,70107.0,70090.0,0.00152]
[1773168213717,0.03,70102.0,70090.0,0.00152]
[1773168214308,0.03,70102.0,70091.0,0.00152]
[1773168214945,0.03,70101.0,70086.0,0.0002]
[1773168215148,0.03,70101.0,70082.0,0.07154445]
[1773168215149,0.00152,70103.0,70068.0,0.01531197]
[1773168215150,0.03,70095.0,70068.0,0.01531197]
[1773168215344,0.1806481,70107.0,70068.0,0.01531197]
[1773168215345,0.07133787,70089.0,70068.0,0.00562]
[1773168215549,0.03,70085.0,70069.0,0.00152]
[1773168215707,0.03,70085.0,70068.0,0.00562]
[1773168215913,0.03937839,70085.0,70070.0,0.00152]
[1773168216134,0.03,70083.0,70071.0,0.00152]
[1773168216416,0.03,70083.0,70070.0,0.00011279]
[1773168216621,0.03,70083.0,70071.0,0.00152]
[1773168216829,0.03,70083.0,70070.0,0.00163279]
[1773168217029,0.03,70083.0,70070.0,0.00011279]
[1773168217216,0.03,70083.0,70059.0,0.15532393]
[1773168217217,0.03,70082.0,70059.0,0.00969197]
[1773168217422,0.03,70082.0,70060.0,0.00152]
[1773168217423,0.03,70076.0,70060.0,0.00152]
[1773168217662,0.03,70076.0,70051.0,0.07137554]
[1773168217841,0.03,70072.0,70052.0,0.00152]
[1773168218045,0.03,70072.0,70050.0,0.07160738]
[1773168218662,0.01089839,70073.0,70050.0,0.00023]
[1773168218663,0.03,70068.0,70050.0,0.00023]
[1773168218838,0.03937839,70068.0,70050.0,0.00023]
[1773168219042,0.03937839,70068.0,70051.0,0.00152]
[1773168219239,0.03,70068.0,70051.0,0.01121197]
[1773168219461,0.03,70066.0,70052.0,0.07137554]
[1773168220240,0.07134703,70080.0,70054.0,0.08940525]
[1773168220492,0.0001126,70082.0,70061.0,0.00969197]
[1773168220777,0.0001126,70082.0,70060.0,0.16258506]
[1773168220778,0.03,70081.0,70063.0,0.00969197]
[1773168221555,0.03,70081.0,70064.0,0.00152]
[1773168221556,0.03,70079.0,70064.0,0.00152]
[1773168221741,0.03,70079.0,70056.0,0.00969197]
[1773168221950,0.03,70079.0,70063.0,0.001]
[1773168222150,0.03,70079.0,70056.0,0.00969197]
[1773168222151,0.03,70079.0,70064.0,0.00152]
[1773168222377,0.03,70079.0,70065.0,0.00152]
[1773168222620,0.03,70078.0,70063.0,0.00969197]
[1773168222751,0.03,70078.0,70054.0,0.1607778]
[1773168222951,0.03937839,70078.0,70055.0,0.00152]
[1773168223173,0.04089839,70078.0,70055.0,0.00152]
[1773168224186,0.03,70076.0,70054.0,0.07137255]
[1773168224384,0.03,70074.0,70056.0,0.00152]
[1773168224754,0.03,70074.0,70057.0,0.00152]
[1773168224955,0.03,70074.0,70058.0,0.00152]
[1773168225357,0.03,70073.0,70052.0,0.0002]
[1773168225558,0.00152,70072.0,70053.0,0.00152]
[1773168226370,0.03,70070.0,70052.0,0.0002]
[1773168226568,0.03,70070.0,70020.0,0.16258506]
[1773168226773,0.00478749,70060.0,70026.0,0.07182302]
[1773168227010,0.00478749,70058.0,70026.0,0.07182302]
[1773168227193,0.00478749,70058.0,70026.0,0.07182353]
[1773168227392,0.00478749,70058.0,70026.0,0.0004216]
[1773168228009,0.00478749,70058.0,70026.0,0.00079702]
[1773168228223,0.00578749,70058.0,70026.0,0.00079702]
[1773168228401,0.00478749,70055.0,70026.0,0.00079702]
[1773168228603,0.03,70056.0,70026.0,0.00079702]
[1773168228835,0.07137045,70057.0,70026.0,0.00079702]
[1773168229033,0.00478749,70056.0,70026.0,0.07219882]
[1773168229248,0.00478749,70056.0,70026.0,0.00079702]
[1773168229249,0.00397778,70056.0,70026.0,0.00079702]
[1773168229449,0.07137045,70057.0,70027.0,0.00152]
[1773168230439,0.07137045,70057.0,70027.0,0.0017208]
[1773168230639,0.07137045,70057.0,70032.0,0.00499999]
[1773168230821,0.00152,70056.0,70032.0,0.00499999]
[1773168231481,0.00152,70056.0,70040.0,0.16258506]
[1773168231620,0.00152,70056.0,70042.0,0.00499999]
[1773168231834,0.00152,70056.0,70043.0,0.00499999]
[1773168232329,0.00022001,70058.0,70043.0,0.00499999]
[1773168232551,0.03022001,70058.0,70049.0,0.00499999]
[1773168233370,0.07136459,70063.0,70049.0,0.00499999]
[1773168233720,0.07136459,70063.0,70049.0,0.00537541]
[1773168233721,0.03,70062.0,70049.0,0.00537541]
[1773168234139,0.03,70062.0,70050.0,0.00152]
[1773168234639,0.03,70060.0,70049.0,0.00537541]
[1773168235249,0.03,70060.0,70049.0,0.00037542]
[1773168235735,0.03,70061.0,70049.0,0.00037542]
[1773168236139,0.03,70059.0,70049.0,0.00037542]
[1773168236363,0.03,70059.0,70026.0,0.0002]
[1773168236364,0.03,70053.0,70039.0,0.00152]
[1773168236559,0.03037542,70053.0,70039.0,0.00152]
[1773168236928,0.03,70051.0,70031.0,0.19990471]
[1773168237142,0.03469407,70052.0,70032.0,0.00152]
[1773168238091,0.03469407,70052.0,70033.0,0.00152]
[1773168238672,0.03469407,70052.0,70031.0,0.19990471]
[1773168238849,0.03469407,70052.0,70032.0,0.00152]
[1773168239169,0.03469407,70052.0,70033.0,0.07139491]
[1773168239379,0.03,70052.0,70033.0,0.07139491]
[1773168240919,0.03,70052.0,70032.0,0.07139569]
[1773168240920,0.01763062,70051.0,70032.0,0.07139569]
[1773168241148,0.03,70050.0,70025.0,0.00023]
[1773168241281,0.03,70044.0,70009.0,0.10072455]
[1773168241617,0.07137962,70048.0,70017.0,0.07141119]
[1773168241618,0.03,70034.0,70017.0,0.07141119]
[1773168241817,0.07137962,70048.0,70018.0,0.07161008]
[1773168241818,0.03,70032.0,70018.0,0.07161008]
[1773168242292,0.03152,70032.0,70026.0,0.001]
[1773168242758,0.00152,70032.0,70026.0,0.001]
[1773168242943,0.03,70038.0,70026.0,0.001]
[1773168243193,0.03,70033.0,70018.0,0.0002]
[1773168243311,0.03,70031.0,70018.0,0.07312981]
[1773168243518,0.07139593,70032.0,70018.0,0.07312981]
[1773168243519,0.03,70029.0,70018.0,0.0002]
[1773168243715,0.03,70027.0,70008.0,0.0004128]
[1773168243921,0.03,70023.0,70000.0,1.50033]
[1773168244136,0.00881531,70021.0,70000.0,1.57175785]
[1773168244333,0.07139593,70032.0,70000.0,1.57175785]
[1773168244548,0.00152,70031.0,70000.0,1.50033]
[1773168244756,0.06972084,70032.0,70000.0,1.50033]
[1773168244757,0.00152,70030.0,70000.0,1.50033]
[1773168244956,0.00420441,70029.0,70000.0,1.50033]
[1773168245198,0.03,70025.0,70000.0,1.50033]
[1773168245370,0.00152,70024.0,70001.0,0.00469125]
[1773168245571,0.01943837,70026.0,70000.0,1.50185]
[1773168245572,0.00105578,70023.0,70000.0,1.50185]
[1773168245997,0.00105578,70023.0,70001.0,0.00499999]
[1773168247089,0.00152,70022.0,70001.0,0.00499999]
[1773168247261,0.00152,70022.0,70003.0,0.00499999]
[1773168247262,0.07140714,70021.0,70003.0,0.00499999]
[1773168247770,0.00152,70020.0,70003.0,0.00499999]
[1773168248906,0.00152,70022.0,70003.0,0.00499999]
[1773168249111,0.07139225,70036.0,70003.0,0.00499999]
[1773168249112,0.07139287,70035.0,70003.0,0.00499999]
[1773168249317,0.00152,70034.0,70005.0,0.00499999]
[1773168249910,0.00152,70033.0,70005.0,0.00499999]
[1773168250521,0.00152,70033.0,70006.0,0.00152]
[1773168250765,0.00152,70033.0,70007.0,0.00499999]
[1773168251076,0.03,70033.0,70010.0,0.16302103]
[1773168251257,0.03,70033.0,70008.0,0.0714204]
[1773168251458,0.03,70033.0,70009.0,0.00499999]
[1773168251778,0.10139538,70033.0,70010.0,0.00152]
[1773168251933,0.10139538,70033.0,70011.0,0.00152]
[1773168252133,0.00152,70032.0,70011.0,0.00651999]
[1773168252334,0.00152,70032.0,70011.0,0.00499999]
[1773168252573,0.07139491,70036.0,70011.0,0.00499999]
[1773168252574,0.03,70049.0,70011.0,0.00499999]
[1773168252737,0.03,70049.0,70007.0,0.07142102]
[1773168252738,0.00152,70048.0,70013.0,0.00499999]
[1773168252927,0.00152,70048.0,70012.0,0.00562]
[1773168253131,0.03,70039.0,70007.0,0.07294102]
[1773168253458,0.03,70037.0,70008.0,0.00152]
[1773168254559,0.031,70037.0,70008.0,0.00152]
[1773168255752,0.03,70035.0,70009.0,0.07141938]
[1773168256162,0.03,70035.0,70008.0,0.00152]
[1773168256364,0.03,70035.0,70005.0,0.0714229]
[1773168256654,0.03,70035.0,70008.0,0.0002]
[1773168256972,0.03,70035.0,70008.0,0.00519999]
[1773168257168,0.031,70035.0,70008.0,0.00519999]
[1773168257534,0.03,70035.0,70005.0,0.0714229]
[1773168257856,0.03,70033.0,70005.0,0.0714229]
[1773168258259,0.03,70033.0,70004.0,0.07142398]
[1773168259077,0.03,70033.0,70005.0,0.00499999]
[1773168259281,0.03,70033.0,70003.0,0.07179865]
[1773168259501,0.03,70033.0,70003.0,0.0718005]
[1773168259923,0.03,70031.0,70003.0,0.0718005]
[1773168261604,0.03,70031.0,70004.0,0.00499999]
[1773168261828,0.03,70029.0,70005.0,0.07142346]
[1773168262038,0.03,70029.0,70005.0,0.07642345]
[1773168262480,0.03,70029.0,70005.0,0.07142346]
[1773168262680,0.03,70029.0,70006.0,0.00499999]
[1773168263144,0.03,70028.0,70006.0,0.00499999]
[1773168263656,0.03,70028.0,70011.0,0.00737644]
[1773168263869,0.03,70028.0,70013.0,0.00737644]
[1773168264074,0.03,70027.0,70015.0,0.00737644]
[1773168264718,0.03,70027.0,70014.0,0.07141428]
[1773168265120,0.03,70026.0,70014.0,0.07141428]
[1773168265402,0.03,70026.0,70013.0,0.07141481]
[1773168265403,0.005,70025.0,70013.0,0.07141481]
[1773168266270,0.03,70028.0,70013.0,0.07141481]
[1773168266823,0.03,70028.0,70013.0,0.07161481]
[1773168267047,0.03,70027.0,70013.0,0.07161481]
[1773168267653,0.005,70026.0,70013.0,0.07161481]
[1773168268062,0.03,70027.0,70013.0,0.07161481]
[1773168268253,0.00152,70030.0,70013.0,0.07161481]
[1773168269166,0.03,70031.0,70013.0,0.07161481]
[1773168269370,0.03,70030.0,70013.0,0.07161481]
[1773168270290,0.00714,70040.0,70013.0,0.07161481]
[1773168270451,0.07852788,70040.0,70013.0,0.07161481]
[1773168270651,0.00714,70040.0,70013.0,0.07161481]
[1773168271063,0.08352801,70040.0,70013.0,0.07161481]
[1773168271495,0.03,70039.0,70013.0,0.07161481]
[1773168271802,0.005,70038.0,70014.0,0.00152]
[1773168272149,0.005,70036.0,70015.0,0.07141326]
[1773168272345,0.03,70037.0,70016.0,0.00152]
[1773168272967,0.005,70036.0,70017.0,0.00152]
[1773168273179,0.005,70035.0,70015.0,0.07141326]
[1773168273379,0.005,70035.0,70016.0,0.00152]
[1773168273981,0.005,70035.0,70016.0,0.001]
[1773168274310,0.03,70033.0,70017.0,0.07141122]
[1773168274877,0.005,70032.0,70017.0,0.07141122]
[1773168275775,0.00652,70032.0,70017.0,0.07141122]
[1773168276220,0.03152,70032.0,70017.0,0.07293122]
[1773168276420,0.03652,70032.0,70017.0,0.07293122]
[1773168276622,0.005,70031.0,70017.0,0.07293122]
[1773168276837,0.005,70031.0,70017.0,0.07313122]
[1773168277783,0.005,70031.0,70013.0,0.0002]
[1773168277986,0.005,70031.0,70010.0,0.07141826]
[1773168278236,0.005,70028.0,70011.0,0.07141712]
[1773168280203,0.035,70028.0,70012.0,0.00152]
[1773168280404,0.03,70028.0,70012.0,0.00152]
[1773168280607,0.00152,70034.0,70012.0,0.00152]
[1773168280841,0.0729135,70035.0,70012.0,0.00152]
[1773168281041,0.08401909,70035.0,70012.0,0.00152]
[1773168281245,0.03152,70034.0,70012.0,0.00152]
[1773168281454,0.03152,70034.0,70013.0,0.04071125]
[1773168281823,0.03152,70034.0,70021.0,0.04071125]
[1773168281824,0.03,70034.0,70021.0,0.04071125]
[1773168282027,0.03,70034.0,70023.0,0.04071125]
[1773168282269,0.00022001,70036.0,70024.0,0.07140409]
[1773168282450,0.00022001,70036.0,70025.0,0.04071125]
[1773168283380,0.00562,70040.0,70025.0,0.04071125]
[1773168283549,0.00562,70040.0,70025.0,0.04082387]
[1773168283735,0.00022001,70044.0,70031.0,0.0407102]
[1773168283929,0.00022001,70044.0,70033.0,0.0407102]
[1773168284370,0.00022001,70044.0,70035.0,0.0407102]
[1773168284633,0.00022001,70045.0,70035.0,0.0407102]
[1773168285067,0.00022001,70045.0,70034.0,0.07139389]
[1773168285068,0.03,70044.0,70034.0,0.07139389]
[1773168285274,0.03,70044.0,70028.0,0.07139938]
[1773168285478,0.03,70044.0,70030.0,0.00152]
[1773168286201,0.00152,70043.0,70025.0,0.00011262]
[1773168286490,0.00152,70043.0,70017.0,0.07161122]
[1773168286491,0.03,70041.0,70017.0,0.07161122]
[1773168286647,0.03011252,70041.0,70017.0,0.07161122]
[1773168287054,0.03011252,70041.0,70018.0,0.0407027]
[1773168287250,0.03,70040.0,70018.0,0.0407027]
[1773168287488,0.00152,70039.0,70021.0,0.04071373]
[1773168287803,0.00152,70039.0,70023.0,0.04071373]
[1773168288413,0.10290967,70039.0,70024.0,0.07140409]
[1773168288612,0.10290948,70039.0,70024.0,0.11211782]
[1773168289106,0.10290948,70039.0,70025.0,0.00152]
[1773168289312,0.10290948,70039.0,70024.0,0.00152]
[1773168289716,0.10290948,70039.0,70019.0,0.07292907]
[1773168290031,0.10290948,70039.0,70018.0,0.07140816]
[1773168290032,0.10290948,70039.0,70018.0,0.00152]
[1773168290802,0.10290948,70039.0,70019.0,0.07140918]
[1773168291115,0.00152,70038.0,70020.0,0.04201686]
[1773168291318,0.00152,70037.0,70019.0,0.07140918]
[1773168291637,0.00152,70037.0,70021.0,0.00152]
[1773168291845,0.10138948,70039.0,70021.0,0.00152]
[1773168292024,0.10290948,70039.0,70021.0,0.00152]
[1773168292602,0.10290948,70039.0,70022.0,0.04204337]
[1773168293144,0.10290948,70039.0,70024.0,0.04204337]
[1773168293357,0.10138948,70039.0,70024.0,0.04204337]
[1773168293508,0.19820866,70060.0,70023.0,0.0714051]
[1773168293509,0.00022001,70058.0,70029.0,0.16302103]
[1773168293718,0.00022001,70058.0,70030.0,0.04359389]
[1773168293910,0.07137254,70055.0,70030.0,0.04359389]
[1773168294112,0.07137354,70054.0,70030.0,0.04359389]
[1773168294331,0.07159577,70052.0,70030.0,0.04359389]
[1773168294532,0.03,70049.0,70030.0,0.04359389]
[1773168294737,0.00022001,70058.0,70029.0,0.16313355]
[1773168294738,0.00022001,70059.0,70040.0,0.04192584]
[1773168294902,0.00022001,70059.0,70042.0,0.04199986]
[1773168295102,0.00022001,70059.0,70044.0,0.04199986]
[1773168295757,0.07190643,70075.0,70057.0,0.04196423]
[1773168296013,0.07190643,70075.0,70044.0,0.04196423]
[1773168296014,0.19882525,70074.0,70044.0,0.04196423]
[1773168296215,0.00022001,70054.0,70045.0,0.04348423]
[1773168296453,0.00022001,70054.0,70041.0,0.07138472]
[1773168296833,0.07190643,70075.0,70041.0,0.07138472]
[1773168296834,0.19882525,70095.0,70051.0,0.04196423]
[1773168297063,0.27026986,70095.0,70053.0,0.07137453]
[1773168297234,0.00152,70094.0,70054.0,0.04196423]
[1773168297582,0.00552092,70109.0,70075.0,0.00023]
[1773168297734,0.00552092,70109.0,70081.0,0.04264133]
[1773168297735,0.03,70108.0,70081.0,0.04264133]
[1773168298128,0.18227,70123.0,70076.0,0.04264133]
[1773168298352,0.16301552,70120.0,70077.0,0.00148]
[1773168298555,0.16301552,70120.0,70079.0,0.7]
[1773168298753,0.16301552,70120.0,70078.0,0.00148]
[1773168298754,0.03,70119.0,70078.0,0.00148]
[1773168298958,0.03,70119.0,70076.0,0.00037581]
[1773168299277,0.03,70107.0,70076.0,0.0717268]
[1773168299495,0.03,70107.0,70076.0,0.00037581]
[1773168299496,0.00152,70106.0,70076.0,0.00037581]
[1773168299648,0.03,70099.0,70064.0,0.07136303]
[1773168299850,0.00152,70098.0,70068.0,0.00573285]
[1773168300378,0.00152,70098.0,70061.0,0.00148]
[1773168300379,0.03,70089.0,70053.0,0.07137432]
[1773168300679,0.00152,70088.0,70053.0,0.07137432]
[1773168301259,0.03,70086.0,70053.0,0.07122627]
[1773168301467,0.03,70086.0,70052.0,0.19258881]
[1773168301873,0.16301552,70070.0,70034.0,0.07139378]
[1773168302149,0.00023,70075.0,70020.0,0.0002]
[1773168302150,0.03,70049.0,70020.0,0.0002]
[1773168302337,0.16301552,70050.0,70009.0,0.0002]
[1773168302338,0.866557,70047.0,70009.0,0.0002]
[1773168302541,0.20034525,70048.0,70009.0,0.0002]
[1773168302542,0.03,70039.0,70009.0,0.0002]
[1773168302741,0.16301552,70040.0,70000.0,1.50033]
[1773168302742,0.03,70029.0,70000.0,1.50033]
[1773168302943,0.03,70029.0,70000.0,0.39076045]
[1773168302944,0.03,70019.0,70000.0,0.39076045]
[1773168303164,0.07141122,70017.0,69984.0,0.00562]
[1773168303367,0.03,70009.0,69984.0,0.00562]
[1773168303531,0.00152,70008.0,69984.0,0.00562]
[1773168303730,0.00152,70008.0,69968.0,0.07146034]
[1773168303932,0.00152,70008.0,69964.0,0.0714647]
[1773168303933,0.03,69999.0,69960.0,0.07146872]
[1773168304168,0.03,69999.0,69959.0,0.0005097]
[1773168304169,0.03,69989.0,69959.0,0.0005097]
[1773168304471,0.03,69989.0,69936.0,0.07149303]
[1773168304472,0.03183071,69998.0,69945.0,0.0030929]
[1773168304473,0.00023,69975.0,69945.0,0.0030929]
[1773168304636,0.00023,69975.0,69931.0,0.04471226]
[1773168304637,0.2497,69974.0,69931.0,0.04471226]
[1773168304772,0.03918405,69974.0,69935.0,0.07849433]
[1773168304987,0.00562,69984.0,69950.0,0.16324552]
[1773168305276,0.00023,70000.0,69957.0,0.04584563]
[1773168305277,0.15829765,69990.0,69957.0,0.04584563]
[1773168305478,0.00023,70000.0,69957.0,0.04584563]
[1773168305479,0.00152,69993.0,69957.0,0.04584563]
[1773168305824,0.00023,70000.0,69956.0,0.00562]
[1773168305825,0.00023,70000.0,69960.0,0.03234816]
[1773168306033,0.00148,70004.0,69976.0,0.04584563]
[1773168306238,0.16803868,70020.0,69975.0,0.00023]
[1773168306239,0.16803868,70020.0,69982.0,0.169481]
[1773168306529,0.00144,70026.0,69980.0,0.16301552]
[1773168306530,0.00144,70026.0,69991.0,0.04584563]
[1773168306779,0.00562,70040.0,69984.0,0.00562]
[1773168306780,0.00706,70040.0,70002.0,0.210957]
[1773168306983,0.00706,70040.0,70011.0,0.04584563]
[1773168306984,0.00562,70040.0,70011.0,0.04584563]
[1773168307190,0.00562,70040.0,70003.0,0.00148]
[1773168307191,0.00023,70050.0,70023.0,0.0714051]
[1773168307392,0.03,70069.0,70030.0,0.16301552]
[1773168307527,0.03,70069.0,70024.0,0.00148]
[1773168307528,0.03,70063.0,70031.0,0.04919416]
[1773168307868,0.03,70063.0,70033.0,0.04919416]
[1773168308442,0.18931755,70097.0,70050.0,0.16301552]
[1773168308662,0.18931755,70097.0,70052.0,0.04919416]
[1773168308663,0.0314,70088.0,70052.0,0.04919416]
[1773168308890,0.0314,70088.0,70054.0,0.04919416]
[1773168309300,0.0314,70088.0,70063.0,0.04919416]
[1773168309447,0.0314,70088.0,70065.0,0.04995869]
[1773168309775,0.0314,70088.0,70066.0,0.05143869]
[1773168309776,0.03,70087.0,70066.0,0.05143869]
[1773168309992,0.03,70087.0,70067.0,0.00148]
[1773168310190,0.00698,70096.0,70068.0,0.04995869]
[1773168310498,0.00023,70100.0,70069.0,0.475835]
[1773168310720,0.00023,70100.0,70070.0,0.04995869]
[1773168311129,0.03023,70100.0,70071.0,0.00148]
[1773168311320,0.03023,70100.0,70072.0,0.07135517]
[1773168311703,0.03023,70100.0,70072.0,0.1212688]
[1773168311898,0.10155738,70100.0,70072.0,0.1212688]
[1773168312094,0.03,70099.0,70072.0,0.1212688]
[1773168313246,0.00023,70100.0,70073.0,0.00148]
[1773168313247,0.03,70098.0,70073.0,0.00148]
[1773168313449,0.1013288,70098.0,70074.0,0.07135314]
[1773168313624,0.1013288,70098.0,70074.0,0.07283314]
[1773168314146,0.00144,70097.0,70074.0,0.07135314]
[1773168314292,0.00144,70097.0,70074.0,0.07283314]
[1773168314653,0.00023,70100.0,70075.0,0.04986484]
[1773168314810,0.00022001,70106.0,70077.0,0.04986484]
[1773168315014,0.07132158,70105.0,70077.0,0.04986484]
[1773168315210,0.07132158,70105.0,70078.0,0.00148]
[1773168315422,0.03,70102.0,70079.0,0.07134805]
[1773168315618,0.0014,70101.0,70078.0,0.07134805]
[1773168316453,0.0314,70101.0,70078.0,0.07134805]
[1773168317056,0.03,70101.0,70079.0,0.04979541]
[1773168317402,0.07154132,70106.0,70079.0,0.04979541]
[1773168317403,0.00022001,70106.0,70081.0,0.1947192]
[1773168317605,0.03022001,70121.0,70083.0,0.07994098]
[1773168317843,0.03,70113.0,70084.0,0.00148]
[1773168318045,0.03,70113.0,70085.0,0.07994098]
[1773168318826,0.03,70112.0,70085.0,0.07994098]
[1773168319700,0.03,70110.0,70087.0,0.0713399]
[1773168319935,0.03,70110.0,70088.0,0.07996307]
[1773168320272,0.03,70110.0,70100.0,0.00048]
[1773168320769,0.03,70110.0,70097.0,0.00148]
[1773168320770,0.03,70110.0,70080.0,0.07134499]
[1773168320974,0.03,70110.0,70068.0,0.00562]
[1773168320975,0.22546934,70110.0,70068.0,0.00562]
[1773168321221,0.22546934,70110.0,70075.0,0.07158168]
[1773168321426,0.00144,70109.0,70075.0,0.07195733]
[1773168321626,0.03,70107.0,70075.0,0.07195733]
[1773168321954,0.03,70107.0,70080.0,0.001]
[1773168322091,0.03,70107.0,70075.0,0.07195733]
[1773168322492,0.03,70107.0,70075.0,0.00060565]
[1773168322893,0.031,70107.0,70075.0,0.00060565]
[1773168323116,0.031,70107.0,70075.0,0.07195708]
[1773168324044,0.03,70105.0,70075.0,0.07195708]
[1773168324797,0.03,70105.0,70076.0,0.04955605]
[1773168325002,0.03,70105.0,70075.0,0.07195708]
[1773168325003,0.00022001,70130.0,70081.0,0.20736054]
[1773168325214,0.10153262,70114.0,70082.0,0.04955605]
[1773168325357,0.03022001,70114.0,70082.0,0.05103605]
[1773168325559,0.10153267,70114.0,70082.0,0.05103605]
[1773168326194,0.00022001,70114.0,70084.0,0.01444622]
[1773168326397,0.00170001,70121.0,70091.0,0.01444622]
[1773168326599,0.00170001,70121.0,70093.0,0.01444622]
[1773168326843,0.00022001,70115.0,70093.0,0.01444622]
[1773168327069,0.00022001,70115.0,70094.0,0.00148]
[1773168327210,0.00022001,70115.0,70094.0,0.01592622]
[1773168327438,0.00022001,70115.0,70094.0,0.01444622]
[1773168327659,0.00022001,70115.0,70095.0,0.00148]
[1773168328186,0.03022001,70115.0,70096.0,0.07133074]
[1773168328393,0.03022001,70115.0,70083.0,0.07134397]
[1773168328394,0.03022001,70115.0,70082.0,0.07134403]
[1773168328395,0.03,70113.0,70082.0,0.07134403]
[1773168328743,0.00148,70112.0,70076.0,0.07135072]
[1773168330586,0.03,70110.0,70076.0,0.07135072]
[1773168330952,0.00148,70109.0,70076.0,0.07135072]
[1773168331157,0.00148,70109.0,70075.0,0.07195675]
[1773168331357,0.00148,70109.0,70076.0,0.00148]
[1773168331601,0.00148,70109.0,70077.0,0.02466815]
[1773168332162,0.00148,70108.0,70077.0,0.02466815]
[1773168332362,0.07131548,70113.0,70076.0,0.00148]
[1773168332363,0.00022001,70122.0,70091.0,0.02466815]
[1773168332713,0.07153195,70115.0,70094.0,0.02466815]
[1773168332911,0.001,70109.0,70094.0,0.02466815]
[1773168333115,0.07153226,70115.0,70094.0,0.02466815]
[1773168333349,0.07153226,70115.0,70090.0,0.07133379]
[1773168333350,0.07153226,70115.0,70076.0,0.0713511]
[1773168333559,0.03,70114.0,70078.0,0.04994241]
[1773168333847,0.00022001,70113.0,70078.0,0.04994241]
[1773168334432,0.03,70099.0,70076.0,0.0715511]
[1773168334630,0.03,70097.0,70076.0,0.0002]
[1773168335057,0.03,70097.0,70075.0,0.00060565]
[1773168335264,0.07257871,70098.0,70069.0,0.00152]
[1773168335406,0.03,70089.0,70068.0,0.00582]
[1773168335607,0.00148,70088.0,70068.0,0.00582]
[1773168336003,0.00148,70088.0,70068.0,0.07717893]
[1773168336652,0.03,70086.0,70068.0,0.07717893]
[1773168337062,0.03,70086.0,70068.0,0.07717911]
[1773168338026,0.031,70086.0,70068.0,0.07717911]
[1773168338224,0.031,70086.0,70068.0,0.07717903]
[1773168338448,0.03,70086.0,70068.0,0.07717903]
[1773168338652,0.03,70084.0,70068.0,0.07717903]
[1773168339234,0.03,70084.0,70069.0,0.05207733]
[1773168339435,0.07133144,70096.0,70071.0,0.05239907]
[1773168339659,0.03,70096.0,70071.0,0.05239907]
[1773168339979,0.03,70096.0,70070.0,0.16436497]
[1773168339980,0.07153359,70113.0,70083.0,0.05239907]
[1773168340185,0.00148,70112.0,70085.0,0.05239907]
[1773168340814,0.03,70110.0,70087.0,0.05239907]
[1773168341617,0.03,70110.0,70088.0,0.00152]
[1773168341776,0.03,70110.0,70087.0,0.02824292]
[1773168341981,0.03,70110.0,70088.0,0.00152]
[1773168342992,0.03,70108.0,70089.0,0.07133787]
[1773168343191,0.03,70108.0,70090.0,0.00152]
[1773168343786,0.03,70108.0,70089.0,0.07133787]
[1773168344021,0.03,70108.0,70075.0,0.02854282]
[1773168344220,0.03,70108.0,70083.0,0.0717189]
[1773168345073,0.03,70106.0,70083.0,0.0717189]
[1773168345715,0.00148,70105.0,70084.0,0.00148]
[1773168346225,0.00148,70105.0,70083.0,0.00037581]
[1773168346842,0.00148,70105.0,70075.0,0.02854282]
[1773168346843,0.00148,70105.0,70075.0,0.00023]
[1773168347188,0.00148,70105.0,70060.0,0.02849632]
[1773168347189,0.00562,70096.0,70060.0,0.0002]
[1773168347348,0.00148,70095.0,70060.0,0.0002]